bitfinex/quotes_BTCUSD_20220207
["timestamp","ask_amount","ask_price","bid_price","bid_amount"]
[1644253259712,0.02077543,43782.0,43781.0,0.01021607]
[1644253260013,0.23448943,43782.0,43781.0,0.005]
[1644253260611,0.56516326,43782.0,43781.0,0.005]
[1644253260812,0.66516326,43782.0,43781.0,0.005]
[1644253263111,0.33448943,43782.0,43781.0,0.005]
[1644253263363,0.23448943,43782.0,43781.0,0.005]
[1644253264763,0.33448943,43782.0,43781.0,0.005]
[1644253265166,0.43448943,43782.0,43781.0,0.005]
[1644253266266,0.33448943,43782.0,43781.0,0.005]
[1644253266565,0.43448943,43782.0,43781.0,0.005]
[1644253267813,0.07441277,43784.0,43781.0,0.03422457]
[1644253268012,0.01727777,43784.0,43781.0,0.03422457]
[1644253268810,0.32310855,43783.0,43781.0,0.00521607]
[1644253269011,0.32310855,43783.0,43767.0,0.02922457]
[1644253269012,0.84972514,43781.0,43767.0,0.02922457]
[1644253269214,0.84972514,43781.0,43766.0,0.02922457]
[1644253269215,0.02077543,43772.0,43766.0,0.02922457]
[1644253269414,0.513714,43780.0,43758.0,0.42]
[1644253269415,0.85,43765.0,43758.0,0.42]
[1644253269611,0.02077543,43759.0,43749.0,0.42]
[1644253269811,0.84793293,43764.0,43747.0,0.05922457]
[1644253269812,0.02077543,43752.0,43747.0,0.05922457]
[1644253270111,0.02077543,43752.0,43751.0,0.019]
[1644253270520,0.34616843,43752.0,43751.0,0.019]
[1644253270710,0.65073023,43752.0,43751.0,0.019]
[1644253270967,0.75073023,43752.0,43751.0,0.019]
[1644253271870,0.0421,43752.0,43751.0,0.019]
[1644253272468,0.01988792,43755.0,43752.0,0.55]
[1644253272667,0.06198792,43755.0,43754.0,0.02922457]
[1644253273070,0.03937315,43755.0,43754.0,0.02922457]
[1644253273268,0.01948523,43755.0,43754.0,0.02922457]
[1644253273468,0.01715178,43765.0,43755.0,0.85]
[1644253273668,0.01715178,43765.0,43764.0,0.02922457]
[1644253273869,2.51699289,43771.0,43764.0,0.02922457]
[1644253274069,0.05,43776.0,43769.0,0.02922457]
[1644253274270,0.02077543,43785.0,43775.0,0.02922457]
[1644253274271,0.5,43785.0,43775.0,0.02922457]
[1644253274473,0.26884646,43782.0,43778.0,0.02922457]
[1644253274714,0.01,43788.0,43774.0,0.20240321]
[1644253274715,0.01,43788.0,43782.0,0.325393]
[1644253274916,0.01,43788.0,43787.0,0.02922457]
[1644253275114,0.01,43788.0,43787.0,0.61384309]
[1644253275314,0.01,43788.0,43787.0,0.65594309]
[1644253275514,0.01,43788.0,43787.0,0.92424108]
[1644253276114,0.0182882,43797.0,43792.0,0.07166497]
[1644253276315,0.0182882,43797.0,43793.0,0.39671757]
[1644253276514,0.001,43797.0,43793.0,0.39671757]
[1644253277115,0.22973001,43796.0,43793.0,0.367493]
[1644253277315,0.05077543,43794.0,43787.0,0.26829799]
[1644253277516,0.05,43792.0,43787.0,0.58869099]
[1644253277714,0.05,43792.0,43787.0,0.26329799]
[1644253277914,0.02077543,43791.0,43787.0,0.25829799]
[1644253278113,0.20129414,43789.0,43787.0,0.25829799]
[1644253278366,0.02077543,43791.0,43787.0,0.25829799]
[1644253278661,0.30190649,43790.0,43787.0,0.25829799]
[1644253278863,0.02077543,43788.0,43787.0,0.25829799]
[1644253279063,0.30190649,43790.0,43787.0,0.25829799]
[1644253279462,0.30190649,43790.0,43789.0,0.02922457]
[1644253280064,0.30190649,43790.0,43783.0,0.02922457]
[1644253280264,0.02077543,43789.0,43783.0,0.02922457]
[1644253281063,0.19040849,43787.0,43783.0,0.02922457]
[1644253281265,0.19040849,43787.0,43778.0,0.00073262]
[1644253281266,0.05,43786.0,43778.0,0.00073262]
[1644253281466,0.09807759,43780.0,43778.0,0.00073262]
[1644253281665,0.09807759,43780.0,43777.0,0.02123045]
[1644253281866,0.12077543,43780.0,43778.0,0.00073259]
[1644253282121,0.05,43780.0,43778.0,0.32612559]
[1644253282416,0.1,43782.0,43778.0,0.32612559]
[1644253282613,0.05,43782.0,43778.0,0.32612559]
[1644253282815,0.1,43782.0,43778.0,0.325393]
[1644253283015,0.1,43782.0,43778.0,0.32612559]
[1644253284014,0.05,43781.0,43778.0,0.325393]
[1644253284616,0.05,43782.0,43780.0,0.22649591]
[1644253284816,0.01726957,43787.0,43780.0,0.55188891]
[1644253285215,0.01716957,43787.0,43783.0,0.02922457]
[1644253285416,0.01716957,43787.0,43784.0,0.325393]
[1644253285860,0.01716957,43787.0,43781.0,0.00021481]
[1644253286064,0.19539174,43782.0,43781.0,0.00021481]
[1644253286260,0.01716957,43787.0,43781.0,0.325393]
[1644253286261,0.057124,43786.0,43781.0,0.325393]
[1644253286461,0.053023,43786.0,43781.0,0.325393]
[1644253286660,0.053023,43786.0,43785.0,0.02922457]
[1644253287362,0.053023,43786.0,43785.0,0.35461757]
[1644253288161,0.053023,43786.0,43785.0,0.325393]
[1644253288361,0.07379843,43786.0,43784.0,0.00021481]
[1644253288566,0.325393,43785.0,43781.0,0.00021481]
[1644253288762,0.07791443,43782.0,43777.0,0.00021481]
[1644253288963,0.02077543,43778.0,43776.0,0.02192489]
[1644253289362,0.02077543,43778.0,43775.0,0.020616]
[1644253289616,0.02077543,43778.0,43775.0,0.02040119]
[1644253290409,0.25683678,43780.0,43775.0,0.020616]
[1644253290610,0.01577543,43779.0,43775.0,0.020616]
[1644253291114,0.05686391,43778.0,43775.0,0.020616]
[1644253291314,0.05686391,43778.0,43775.0,0.00021481]
[1644253291511,0.05686391,43778.0,43775.0,0.00073257]
[1644253291914,0.10686391,43778.0,43775.0,0.00073257]
[1644253292512,0.325393,43777.0,43771.0,0.00021481]
[1644253292713,0.10686391,43778.0,43774.0,0.00073257]
[1644253292911,0.01577543,43776.0,43774.0,0.00073257]
[1644253293363,0.01077543,43776.0,43774.0,0.00073257]
[1644253293563,0.01077543,43776.0,43773.0,0.00021481]
[1644253293768,0.01077543,43776.0,43772.0,0.22295875]
[1644253293964,0.01077543,43776.0,43773.0,0.3263404]
[1644253294166,0.01077543,43776.0,43773.0,0.32612559]
[1644253294365,0.01077543,43776.0,43773.0,0.3263404]
[1644253294564,0.01077543,43776.0,43773.0,0.31612559]
[1644253294764,0.01077543,43776.0,43770.0,0.26014172]
[1644253294765,0.01077543,43776.0,43771.0,0.00021481]
[1644253294965,0.20683678,43780.0,43773.0,0.00021481]
[1644253295164,0.20683678,43780.0,43770.0,0.1598057]
[1644253295165,0.35683678,43780.0,43770.0,0.1598057]
[1644253295365,0.35683678,43780.0,43768.0,0.325666]
[1644253295366,0.23945268,43773.0,43768.0,0.325666]
[1644253295566,0.28945268,43773.0,43768.0,0.32588081]
[1644253295765,0.30653145,43773.0,43768.0,0.32588081]
[1644253296369,0.30653145,43773.0,43768.0,0.00021481]
[1644253296370,0.35653145,43773.0,43768.0,0.00021481]
[1644253296574,0.35653145,43773.0,43767.0,0.01875564]
[1644253296575,0.50653145,43773.0,43767.0,0.01875564]
[1644253296767,0.05,43771.0,43767.0,0.01875564]
[1644253296968,0.222667,43770.0,43767.0,0.01897045]
[1644253297216,0.222667,43770.0,43748.0,0.9133]
[1644253297217,0.325665,43768.0,43759.0,0.02179324]
[1644253297515,0.325665,43768.0,43762.0,0.24208645]
[1644253297516,0.057155,43767.0,43762.0,0.24208645]
[1644253297713,0.057155,43767.0,43760.0,0.00211344]
[1644253297911,0.057155,43767.0,43760.0,0.00232825]
[1644253298112,0.1,43768.0,43760.0,0.00232825]
[1644253298512,0.25402864,43767.0,43760.0,0.00021481]
[1644253298711,0.25402864,43767.0,43762.0,0.2026845]
[1644253298914,0.0421,43769.0,43762.0,0.2026845]
[1644253299113,0.10917877,43773.0,43762.0,0.2026845]
[1644253299315,0.01840944,43769.0,43763.0,0.325666]
[1644253299516,0.01840944,43769.0,43763.0,0.32588081]
[1644253299914,0.01840944,43769.0,43768.0,0.325666]
[1644253300214,0.01840944,43769.0,43764.0,0.00094751]
[1644253300514,0.01840944,43769.0,43765.0,0.32588081]
[1644253300714,0.01840944,43769.0,43765.0,0.325666]
[1644253300969,0.01840944,43769.0,43766.0,0.325666]
[1644253301167,0.01840944,43769.0,43765.0,0.00073269]
[1644253301367,0.1,43770.0,43765.0,0.57280967]
[1644253301766,0.05,43770.0,43765.0,0.32639869]
[1644253301967,0.05,43770.0,43765.0,0.325666]
[1644253302170,0.05,43770.0,43765.0,0.00073268]
[1644253302570,0.05,43770.0,43765.0,0.00094749]
[1644253303170,0.05,43770.0,43765.0,0.00021481]
[1644253303370,0.05,43770.0,43765.0,0.00073268]
[1644253303976,0.62855735,43769.0,43765.0,0.00073268]
[1644253304178,0.67065735,43769.0,43765.0,0.00073268]
[1644253304373,0.67065735,43769.0,43760.0,0.00021481]
[1644253304374,0.44499135,43769.0,43760.0,0.00021481]
[1644253304620,0.0421,43769.0,43765.0,0.00073269]
[1644253304814,0.22332616,43767.0,43765.0,0.00073269]
[1644253305113,0.27332616,43767.0,43765.0,0.00073269]
[1644253305714,0.27332616,43767.0,43759.0,0.00021481]
[1644253305715,0.55913918,43767.0,43759.0,0.00021481]
[1644253305913,0.23997118,43760.0,43757.0,0.00293124]
[1644253306117,0.05,43759.0,43757.0,0.00293124]
[1644253306316,0.325666,43758.0,43757.0,0.00293124]
[1644253306514,0.375666,43758.0,43757.0,0.00293124]
[1644253306716,0.475666,43758.0,43757.0,0.00293124]
[1644253306912,0.475666,43758.0,43752.0,0.00021481]
[1644253306913,0.54174967,43758.0,43752.0,0.00021481]
[1644253307113,0.54174967,43758.0,43755.0,0.0007328]
[1644253307114,0.222666,43757.0,43755.0,0.0007328]
[1644253307512,0.15,43758.0,43755.0,0.0007328]
[1644253307712,0.06541506,43759.0,43755.0,0.0007328]
[1644253308112,0.06541506,43759.0,43754.0,0.00021481]
[1644253308366,0.06541506,43759.0,43755.0,0.00073281]
[1644253308767,0.06541506,43759.0,43756.0,0.03922457]
[1644253308968,0.06541506,43759.0,43756.0,0.03943938]
[1644253309568,0.06541506,43759.0,43757.0,0.18929661]
[1644253309770,0.06541506,43759.0,43757.0,0.325666]
[1644253310068,0.03271601,43764.0,43756.0,0.00021481]
[1644253310069,0.02194058,43764.0,43758.0,0.03922457]
[1644253310267,0.02194058,43764.0,43755.0,0.0007328]
[1644253310268,0.02194058,43764.0,43763.0,0.03922457]
[1644253310467,0.02194058,43764.0,43763.0,0.36489057]
[1644253310867,0.22725418,43764.0,43763.0,0.325666]
[1644253311070,0.22725418,43764.0,43760.0,0.26308879]
[1644253311267,0.22725418,43764.0,43761.0,0.325666]
[1644253311268,0.2053136,43764.0,43761.0,0.325666]
[1644253311467,0.2053136,43764.0,43760.0,0.03943938]
[1644253311871,0.2053136,43764.0,43760.0,0.03995731]
[1644253312125,0.21608903,43764.0,43760.0,0.03995731]
[1644253312317,0.21608903,43764.0,43760.0,0.00073274]
[1644253312718,0.2553136,43764.0,43760.0,0.00073274]
[1644253312917,0.2553136,43764.0,43756.0,0.00021481]
[1644253312918,0.01077543,43761.0,43756.0,0.00021481]
[1644253313216,0.2553136,43764.0,43756.0,0.325666]
[1644253313217,0.05,43760.0,43756.0,0.325666]
[1644253313417,0.05,43760.0,43756.0,0.32588081]
[1644253313618,0.05,43760.0,43756.0,0.325666]
[1644253314218,0.05,43760.0,43759.0,0.325666]
[1644253314521,0.17712732,43769.0,43759.0,0.325666]
[1644253314522,0.01077543,43764.0,43759.0,0.325666]
[1644253314717,0.07035793,43769.0,43760.0,0.325666]
[1644253314919,0.07035793,43769.0,43762.0,0.03922457]
[1644253315121,0.12035793,43769.0,43765.0,0.21959664]
[1644253315421,0.11919157,43769.0,43765.0,0.45938071]
[1644253315619,0.06919157,43769.0,43765.0,0.45938071]
[1644253316066,0.06919157,43769.0,43765.0,0.23978407]
[1644253316365,0.05,43770.0,43763.0,0.00021481]
[1644253316366,0.107151,43770.0,43763.0,0.00021481]
[1644253316565,0.107151,43770.0,43768.0,0.01919157]
[1644253316566,0.05,43769.0,43768.0,0.01919157]
[1644253317169,0.72029449,43769.0,43768.0,0.01919157]
[1644253317368,1.15231251,43769.0,43768.0,0.01919157]
[1644253317567,1.20947251,43769.0,43768.0,0.01919157]
[1644253317767,1.3662509,43769.0,43768.0,0.01919157]
[1644253320114,1.3662509,43769.0,43768.0,0.00919157]
[1644253320312,1.28774155,43769.0,43768.0,0.00919157]
[1644253320511,1.02162241,43769.0,43768.0,0.00919157]
[1644253321014,0.05,43769.0,43768.0,0.00919157]
[1644253321422,0.05,43769.0,43767.0,0.28403985]
[1644253322314,0.01701121,43772.0,43767.0,0.03922457]
[1644253322613,0.01077543,43768.0,43767.0,0.00021481]
[1644253322810,0.01077543,43768.0,43765.0,0.00021481]
[1644253323012,0.01077543,43768.0,43764.0,0.01997528]
[1644253323211,0.05,43768.0,43766.0,0.02144765]
[1644253323665,0.04963453,43768.0,43766.0,0.02144765]
[1644253324065,0.01077543,43767.0,43766.0,0.02144765]
[1644253324265,0.04963453,43768.0,43766.0,0.02144765]
[1644253324465,0.2531403,43767.0,43766.0,0.02144765]
[1644253325466,0.14963453,43768.0,43765.0,0.00021481]
[1644253325668,0.14963453,43768.0,43764.0,0.00073269]
[1644253326068,0.04963453,43768.0,43766.0,0.03922457]
[1644253326269,2.0175851,43785.0,43767.0,0.375666]
[1644253326270,0.15675695,43777.0,43767.0,0.375666]
[1644253326469,0.15675695,43777.0,43764.0,0.0007327]
[1644253326470,0.0006829,43779.0,43776.0,0.03922457]
[1644253326668,0.00040792,43779.0,43777.0,0.78490393]
[1644253326867,0.00040792,43779.0,43777.0,0.56301269]
[1644253327311,0.06714494,43785.0,43777.0,0.56301269]
[1644253327516,0.06714494,43785.0,43781.0,0.03922457]
[1644253327912,0.06714494,43785.0,43784.0,0.03922457]
[1644253328113,0.06214494,43785.0,43784.0,0.03922457]
[1644253328313,0.01714494,43785.0,43784.0,0.03922457]
[1644253329014,0.01714494,43785.0,43775.0,0.0632591]
[1644253329015,0.02792037,43785.0,43775.0,0.0211591]
[1644253329219,0.01077543,43776.0,43775.0,0.0211591]
[1644253329515,0.06791889,43780.0,43775.0,0.325666]
[1644253329814,0.107138,43783.0,43777.0,0.03922457]
[1644253330017,0.00068232,43781.0,43776.0,0.22604331]
[1644253330215,0.00068232,43781.0,43777.0,0.325666]
[1644253330860,0.107138,43783.0,43776.0,0.03922457]
[1644253331064,0.00068237,43781.0,43776.0,0.03922457]
[1644253331264,0.00068237,43781.0,43780.0,0.03922457]
[1644253331462,0.00068237,43781.0,43780.0,0.29399041]
[1644253331663,0.00068237,43781.0,43780.0,0.61965641]
[1644253332060,0.01077543,43790.0,43780.0,0.61965641]
[1644253332262,0.24041424,43788.0,43784.0,0.03922457]
[1644253332463,0.24041424,43788.0,43780.0,0.25476584]
[1644253332861,0.24041424,43788.0,43781.0,0.03922457]
[1644253333261,0.24041424,43788.0,43777.0,0.01955171]
[1644253333263,0.01077543,43784.0,43777.0,0.01955171]
[1644253333461,0.06077543,43783.0,43777.0,0.01955171]
[1644253333661,0.01077543,43780.0,43777.0,0.01955171]
[1644253333862,0.01077543,43782.0,43780.0,0.01989982]
[1644253334162,0.21003731,43781.0,43780.0,0.01989982]
[1644253335212,0.01077543,43782.0,43780.0,0.01989982]
[1644253335411,0.05068237,43783.0,43782.0,0.0770332]
[1644253335611,0.05068237,43783.0,43781.0,0.03922457]
[1644253335612,0.05,43783.0,43781.0,0.03922457]
[1644253335811,0.05,43783.0,43781.0,0.36489057]
[1644253336112,0.00068237,43783.0,43781.0,0.36489057]
[1644253336312,0.00068237,43783.0,43782.0,0.8112891]
[1644253336914,0.05985808,43790.0,43782.0,0.4856231]
[1644253336915,0.01077543,43790.0,43782.0,0.4856231]
[1644253337113,0.00068237,43785.0,43782.0,0.4856231]
[1644253337315,0.00068237,43785.0,43784.0,0.36489057]
[1644253337513,0.00068237,43785.0,43784.0,0.76522637]
[1644253338014,0.301,43797.0,43784.0,0.76522637]
[1644253338216,0.001,43797.0,43795.0,0.03922457]
[1644253338762,0.001,43797.0,43792.0,0.03922457]
[1644253338963,0.01177543,43796.0,43792.0,0.03922457]
[1644253339164,0.21418191,43794.0,43791.0,0.2027427]
[1644253339366,0.21418191,43794.0,43792.0,0.01877661]
[1644253339563,0.00168237,43796.0,43792.0,0.01877661]
[1644253339964,0.01077543,43793.0,43792.0,0.01877661]
[1644253341267,0.33644143,43793.0,43792.0,0.01877661]
[1644253341465,0.33644143,43793.0,43789.0,0.01958309]
[1644253341466,0.63897446,43793.0,43789.0,0.01958309]
[1644253341666,0.01077543,43790.0,43789.0,0.01958309]
[1644253342518,0.1,43792.0,43789.0,0.01958309]
[1644253343517,0.1,43792.0,43788.0,0.03922457]
[1644253343717,0.05,43792.0,43788.0,0.03922457]
[1644253344120,0.05,43792.0,43788.0,0.24989407]
[1644253344320,0.05068237,43792.0,43791.0,0.03922457]
[1644253344519,0.00068237,43792.0,43791.0,0.03922457]
[1644253344720,0.00068237,43792.0,43791.0,0.36489057]
[1644253345322,0.20372393,43795.0,43791.0,0.36489057]
[1644253345522,0.00068237,43794.0,43791.0,0.36489057]
[1644253346570,0.001,43796.0,43791.0,0.36489057]
[1644253346770,0.00068237,43795.0,43791.0,0.36489057]
[1644253346970,0.00068237,43795.0,43794.0,0.03922457]
[1644253347170,0.00068237,43795.0,43794.0,0.36489057]
[1644253347372,0.00068237,43795.0,43794.0,0.325666]
[1644253347771,0.001,43796.0,43794.0,0.325666]
[1644253347970,0.001,43796.0,43792.0,0.325666]
[1644253348771,0.01177543,43796.0,43792.0,0.325666]
[1644253348972,0.01177543,43796.0,43792.0,0.3253092]
[1644253349174,0.0124578,43796.0,43791.0,0.0218516]
[1644253349912,0.0124578,43796.0,43792.0,0.02058469]
[1644253350114,0.01177543,43796.0,43792.0,0.02058469]
[1644253350312,0.00168237,43796.0,43795.0,0.19973913]
[1644253350513,0.00168237,43796.0,43794.0,0.03922457]
[1644253351316,0.001,43796.0,43794.0,0.03922457]
[1644253352015,0.001,43796.0,43792.0,0.01842176]
[1644253352217,0.01077543,43793.0,43792.0,0.01842176]
[1644253352818,0.00020494,43795.0,43792.0,0.01842176]
[1644253353762,0.001,43796.0,43792.0,0.01842176]
[1644253354262,0.00120494,43796.0,43792.0,0.03922457]
[1644253354863,0.19525842,43796.0,43792.0,0.03922457]
[1644253355063,0.001,43796.0,43792.0,0.03922457]
[1644253355265,0.00120494,43796.0,43795.0,0.03922457]
[1644253355466,0.001,43797.0,43795.0,0.36479757]
[1644253355865,0.001,43797.0,43788.0,0.31936813]
[1644253356069,0.001,43797.0,43795.0,0.31807368]
[1644253356264,0.001,43797.0,43795.0,0.48468814]
[1644253356665,0.001,43797.0,43795.0,0.28593868]
[1644253357123,0.001,43797.0,43795.0,0.61150468]
[1644253357317,0.001,43797.0,43795.0,0.31801768]
[1644253357516,0.001,43797.0,43795.0,0.61150468]
[1644253357717,0.001,43797.0,43795.0,0.36801768]
[1644253357919,0.001,43797.0,43795.0,0.325566]
[1644253358117,0.001,43797.0,43795.0,0.032079]
[1644253358118,0.20504809,43797.0,43795.0,0.032079]
[1644253358318,0.20504809,43797.0,43793.0,0.02114164]
[1644253358621,0.20504809,43797.0,43794.0,0.325566]
[1644253358622,0.000683,43797.0,43794.0,0.325566]
[1644253359621,0.22828792,43795.0,43794.0,0.325566]
[1644253359821,0.27828792,43795.0,43793.0,0.01933731]
[1644253360021,0.05,43794.0,43793.0,0.01933731]
[1644253360420,0.375566,43794.0,43793.0,0.01933731]
[1644253360618,0.4523891,43794.0,43793.0,0.01875087]
[1644253360867,0.475566,43794.0,43793.0,0.01875087]
[1644253361468,0.482693,43794.0,43793.0,0.01875087]
[1644253361866,0.532693,43794.0,43793.0,0.01875087]
[1644253362070,0.91825682,43794.0,43793.0,0.01875087]
[1644253362267,0.057126,43791.0,43780.0,0.4732]
[1644253362468,0.20416046,43783.0,43781.0,0.325566]
[1644253363268,0.25527944,43782.0,43781.0,0.325566]
[1644253363570,0.25527944,43782.0,43778.0,0.13294674]
[1644253364368,0.20416046,43783.0,43780.0,0.325566]
[1644253366023,0.20416046,43783.0,43778.0,0.03878232]
[1644253366223,0.25416046,43783.0,43778.0,0.02008158]
[1644253366427,0.20416046,43783.0,43778.0,0.02008158]
[1644253366924,0.24749775,43779.0,43778.0,0.02008158]
[1644253367224,0.20416046,43783.0,43778.0,0.02008158]
[1644253367225,0.205682,43782.0,43778.0,0.02008158]
[1644253367425,0.305682,43782.0,43778.0,0.02008158]
[1644253367624,0.305682,43782.0,43776.0,0.00073279]
[1644253367625,0.255682,43782.0,43776.0,0.00073279]
[1644253367826,0.355682,43782.0,43776.0,0.00073279]
[1644253368024,0.05,43781.0,43776.0,0.00073279]
[1644253368366,0.05,43781.0,43776.0,0.00073278]
[1644253369268,0.05,43781.0,43774.0,0.02037224]
[1644253369468,0.30417088,43775.0,43774.0,0.02037224]
[1644253369670,0.30417088,43775.0,43772.0,0.01814376]
[1644253369968,0.05,43780.0,43772.0,0.01814376]
[1644253370169,0.05,43781.0,43772.0,0.01814376]
[1644253370368,0.1,43781.0,43772.0,0.01814376]
[1644253370569,0.05,43781.0,43772.0,0.01814376]
[1644253370770,0.05,43781.0,43774.0,0.0007328]
[1644253371168,0.21171795,43779.0,43774.0,0.0007328]
[1644253371370,0.05,43778.0,43774.0,0.0007328]
[1644253371869,0.05,43778.0,43774.0,0.00073281]
[1644253372151,0.21933693,43775.0,43774.0,0.00037601]
[1644253372543,0.05,43778.0,43774.0,0.00037601]
[1644253372943,0.05,43778.0,43770.0,0.25390808]
[1644253373144,0.05,43778.0,43771.0,0.325566]
[1644253373644,0.2491059,43777.0,43771.0,0.325566]
[1644253374247,0.2491059,43777.0,43771.0,0.382705]
[1644253374445,0.2491059,43777.0,43771.0,0.057139]
[1644253374744,0.05,43778.0,43771.0,0.057139]
[1644253375346,0.05,43778.0,43771.0,0.07630657]
[1644253375347,0.07999437,43776.0,43771.0,0.07630657]
[1644253375546,0.05,43778.0,43772.0,0.32629883]
[1644253375746,0.26160228,43778.0,43772.0,0.32629883]
[1644253376569,0.26160228,43778.0,43771.0,0.057139]
[1644253376871,0.26160228,43778.0,43772.0,0.00073284]
[1644253377069,0.34482392,43778.0,43772.0,0.00073284]
[1644253377269,0.44482392,43778.0,43772.0,0.00073284]
[1644253377470,0.05,43773.0,43772.0,0.00073284]
[1644253377669,0.05,43773.0,43769.0,0.11427]
[1644253377870,0.05,43773.0,43772.0,0.00073284]
[1644253378270,0.26160228,43778.0,43772.0,0.32629884]
[1644253378471,0.26160228,43778.0,43772.0,0.00073284]
[1644253378670,0.21160228,43778.0,43772.0,0.00073284]
[1644253378870,0.21160228,43778.0,43769.0,0.11427]
[1644253379071,0.21160228,43778.0,43772.0,0.00073284]
[1644253379272,0.21160228,43778.0,43770.0,0.325566]
[1644253379273,0.00426716,43772.0,43770.0,0.325566]
[1644253380323,0.2056877,43772.0,43770.0,0.325566]
[1644253380522,0.2056877,43772.0,43768.0,0.0201581]
[1644253381524,0.24203956,43771.0,43768.0,0.0201581]
[1644253381725,0.24203956,43771.0,43764.0,0.0182972]
[1644253381926,0.05,43771.0,43765.0,0.325566]
[1644253382128,0.2056877,43772.0,43766.0,0.057141]
[1644253382324,0.2056877,43772.0,43767.0,0.325566]
[1644253383565,0.00426716,43772.0,43767.0,0.325566]
[1644253383765,0.05426716,43772.0,43767.0,0.325566]
[1644253383966,0.05426716,43772.0,43767.0,0.32629889]
[1644253384165,0.05,43768.0,43767.0,0.32629889]
[1644253384673,0.05,43768.0,43767.0,0.00073289]
[1644253384866,0.421266,43768.0,43767.0,0.00073289]
[1644253385065,0.421266,43768.0,43766.0,0.02179893]
[1644253385066,0.82902388,43767.0,43766.0,0.02179893]
[1644253385266,0.91103092,43767.0,43766.0,0.02179893]
[1644253385466,0.65414999,43767.0,43766.0,0.02179893]
[1644253385666,0.22858399,43767.0,43766.0,0.02179893]
[1644253386267,0.22858399,43767.0,43760.0,0.0002146]
[1644253386469,0.22858399,43767.0,43764.0,0.00073292]
[1644253387429,0.22858399,43767.0,43759.0,0.0002146]
[1644253387627,0.22858399,43767.0,43763.0,0.00073293]
[1644253388128,0.20084266,43766.0,43763.0,0.00073293]
[1644253388528,0.20084266,43766.0,43761.0,0.0002146]
[1644253388726,0.25084266,43766.0,43762.0,0.00071056]
[1644253389529,0.05,43766.0,43762.0,0.00071056]
[1644253389728,0.05,43766.0,43761.0,0.0002146]
[1644253389931,0.05,43766.0,43762.0,0.00071057]
[1644253390428,0.057156,43768.0,43766.0,0.1]
[1644253390628,0.057156,43768.0,43762.0,0.00071057]
[1644253390872,0.0571531,43772.0,43762.0,0.00071057]
[1644253390873,0.26832957,43769.0,43762.0,0.00071057]
[1644253391172,0.26832957,43769.0,43763.0,0.0006742]
[1644253391375,0.325566,43768.0,43763.0,0.0006742]
[1644253391773,0.1,43768.0,43763.0,0.0006742]
[1644253392175,0.24326297,43767.0,43759.0,0.0002146]
[1644253392373,0.19562634,43760.0,43758.0,0.02030821]
[1644253392676,0.19562634,43760.0,43759.0,0.325566]
[1644253392874,0.107159,43767.0,43759.0,0.325566]
[1644253392875,0.207159,43767.0,43759.0,0.325566]
[1644253393073,0.057159,43767.0,43759.0,0.325566]
[1644253393273,0.05,43770.0,43759.0,0.3257806]
[1644253393474,0.1,43770.0,43759.0,0.3257806]
[1644253393672,0.05,43770.0,43761.0,0.28218102]
[1644253393873,0.05,43770.0,43761.0,0.53954007]
[1644253393874,0.42642829,43770.0,43761.0,0.53954007]
[1644253394075,0.42642829,43770.0,43761.0,0.53918327]
[1644253394275,0.52642829,43770.0,43761.0,0.53918327]
[1644253394718,0.057155,43770.0,43769.0,0.19423765]
[1644253394928,0.1347,43778.0,43769.0,0.19423765]
[1644253395123,0.5402,43792.0,43777.0,0.07311908]
[1644253395326,0.5402,43792.0,43777.0,0.37311908]
[1644253395327,0.5,43791.0,43777.0,0.37311908]
[1644253395527,0.07112331,43796.0,43790.0,0.05]
[1644253395726,0.000683,43797.0,43794.0,0.7492641]
[1644253395925,0.000683,43797.0,43796.0,0.05]
[1644253396127,0.03,43799.0,43797.0,0.325566]
[1644253396128,0.02866186,43799.0,43797.0,0.325566]
[1644253396319,0.02866186,43799.0,43798.0,0.08240391]
[1644253396518,0.02866186,43799.0,43798.0,0.40796991]
[1644253396921,0.02866186,43799.0,43797.0,0.05]
[1644253397320,0.02866186,43799.0,43792.0,0.05]
[1644253397622,0.057117,43796.0,43795.0,0.01567238]
[1644253398020,0.3118862,43796.0,43795.0,0.01248255]
[1644253398882,0.42612165,43796.0,43795.0,0.01248255]
[1644253399083,0.90168765,43796.0,43795.0,0.01248255]
[1644253399383,0.90168765,43796.0,43780.0,0.3]
[1644253399384,0.05713,43787.0,43780.0,0.3]
[1644253399584,0.85,43795.0,43774.0,0.23703552]
[1644253399585,0.29322353,43789.0,43774.0,0.23703552]
[1644253399785,0.05,43786.0,43776.0,0.06918397]
[1644253399981,0.05,43786.0,43776.0,0.32805799]
[1644253399982,0.26961771,43785.0,43776.0,0.32805799]
[1644253400486,0.057129,43783.0,43778.0,0.05]
[1644253400882,0.0578154,43783.0,43778.0,0.05]
[1644253401882,0.057129,43783.0,43778.0,0.05]
[1644253402131,0.0578154,43783.0,43778.0,0.05]
[1644253402625,0.1149484,43783.0,43778.0,0.05]
[1644253403028,0.114262,43783.0,43778.0,0.05]
[1644253403227,0.1149484,43783.0,43778.0,0.05]
[1644253404026,0.0578154,43783.0,43773.0,0.05]
[1644253404226,0.11426318,43783.0,43773.0,0.05]
[1644253404426,0.11494958,43783.0,43773.0,0.05]
[1644253404626,0.23220724,43778.0,43773.0,0.05]
[1644253404826,0.23220724,43778.0,43774.0,0.325566]
[1644253404827,0.28934524,43778.0,43774.0,0.325566]
[1644253405027,0.28934524,43778.0,43770.0,0.02044997]
[1644253405028,0.50197108,43778.0,43770.0,0.02044997]
[1644253405227,0.55197108,43778.0,43770.0,0.02044997]
[1644253405428,0.10714326,43776.0,43770.0,0.02044997]
[1644253405630,0.10714326,43776.0,43767.0,0.02163335]
[1644253405870,0.22151755,43768.0,43767.0,0.02163335]
[1644253406068,0.22151755,43768.0,43767.0,0.34719935]
[1644253406469,0.22151755,43768.0,43767.0,0.39719935]
[1644253406669,0.22151755,43768.0,43767.0,0.34719935]
[1644253406871,0.22107057,43768.0,43767.0,0.34719935]
[1644253407272,0.22107057,43768.0,43767.0,0.39719935]
[1644253407471,0.05715,43769.0,43767.0,0.39719935]
[1644253407771,0.00068545,43772.0,43767.0,0.39719935]
[1644253407970,0.057146,43773.0,43767.0,0.39719935]
[1644253408178,0.01878113,43785.0,43768.0,1.15]
[1644253408374,0.01878113,43785.0,43784.0,0.05]
[1644253408375,0.20253579,43785.0,43784.0,0.05]
[1644253408573,0.20253579,43785.0,43769.0,0.325566]
[1644253408574,0.20253579,43785.0,43781.0,0.05]
[1644253408973,0.20253579,43785.0,43778.0,0.05]